bitfinex/quotes_SOLUSD_20240829
["timestamp","ask_amount","ask_price","bid_price","bid_amount"]
[1724946771475,15.5639,146.85,146.76,20.0]
[1724946771875,0.12549,146.84,146.76,20.0]
[1724946773185,6.1222,146.83,146.76,20.0]
[1724946773363,0.12549,146.82,146.74,20.0]
[1724946773564,0.12549,146.82,146.72,20.0]
[1724946773979,6.1222,146.83,146.73,31.20144935]
[1724946774162,6.1222,146.83,146.74,20.0]
[1724946774579,0.12549,146.82,146.74,20.0]
[1724946775479,0.12549,146.82,146.73,31.20144935]
[1724946776891,0.12549,146.82,146.74,20.0]
[1724946777181,6.1222,146.83,146.75,76.20144935]
[1724946777488,6.1222,146.83,146.77,31.20144935]
[1724946777671,6.1222,146.83,146.78,66.36222446]
[1724946777870,15.5639,146.85,146.78,65.0]
[1724946780780,15.5639,146.85,146.78,20.0]
[1724946782397,15.5639,146.85,146.77,31.32693935]
[1724946782573,15.5639,146.85,146.78,65.0]
[1724946783189,15.5639,146.85,146.78,20.0]
[1724946783398,0.12549,146.84,146.78,20.0]
[1724946784174,0.12549,146.84,146.76,20.0]
[1724946785200,6.93559,146.84,146.75,31.20144935]
[1724946785794,6.93599,146.83,146.73,31.20144935]
[1724946786094,6.24259,146.82,146.73,31.20144935]
[1724946786683,16.3498,146.81,146.73,31.20144935]
[1724946787185,16.3498,146.81,146.74,20.0]
[1724946787877,16.3498,146.81,146.73,31.20144935]
[1724946788278,23.1613,146.81,146.71,7.12894106]
[1724946788499,0.12549,146.8,146.71,38.33039041]
[1724946789177,16.3498,146.81,146.73,31.20144935]
[1724946789391,16.3498,146.81,146.74,20.0]
[1724946790886,16.3498,146.81,146.73,31.20144935]
[1724946791106,16.3498,146.81,146.75,31.20144935]
[1724946791310,16.3498,146.81,146.76,21.36248758]
[1724946791611,16.3498,146.81,146.76,20.0]
[1724946792112,16.3498,146.81,146.73,20.0]
[1724946792590,0.12549,146.8,146.73,20.0]
[1724946792789,0.12549,146.8,146.74,1.36276701]
[1724946793015,0.12549,146.8,146.73,20.0]
[1724946793204,16.3498,146.81,146.73,20.0]
[1724946794114,16.3498,146.81,146.74,12.50222301]
[1724946794308,0.12549,146.8,146.75,20.0]
[1724946794515,16.3498,146.81,146.75,20.0]
[1724946795210,19.43971301,146.8,146.72,12.50222301]
[1724946795389,19.43971301,146.8,146.73,20.0]
[1724946795792,12.62771301,146.8,146.73,20.0]
[1724946796199,19.43981301,146.8,146.73,20.0]
[1724946796400,6.8124,146.79,146.72,12.50222301]
[1724946796905,0.12549,146.78,146.72,12.50222301]
[1724946797797,0.12549,146.79,146.72,12.50222301]
[1724946797998,0.12549,146.79,146.73,20.0]
[1724946798618,0.12549,146.79,146.71,32.50222301]
[1724946798794,0.12549,146.79,146.73,12.50222301]
[1724946799000,6.93749,146.8,146.73,12.50222301]
[1724946800203,19.43971301,146.8,146.71,32.50222301]
[1724946801500,6.8124,146.79,146.71,32.50222301]
[1724946801701,0.12549,146.78,146.71,32.50222301]
[1724946802111,16.47529,146.81,146.73,12.50222301]
[1724946802316,0.12549,146.8,146.73,12.50222301]
[1724946802503,6.93759,146.8,146.71,20.0]
[1724946802703,6.8124,146.79,146.72,12.50222301]
[1724946802898,22.552,146.77,146.72,12.50222301]
[1724946803100,22.552,146.77,146.7,19.63346767]
[1724946803313,29.3655,146.77,146.71,20.0]
[1724946803494,6.8139,146.76,146.68,7.13241501]
[1724946803698,0.12549,146.75,146.68,22.48357992]
[1724946803906,0.12549,146.75,146.68,15.35116491]
[1724946804213,51.93989,146.75,146.68,12.50222301]
[1724946804419,0.12549,146.75,146.68,12.50222301]
[1724946806205,51.93989,146.75,146.68,12.50222301]
[1724946807917,0.12549,146.75,146.68,12.50222301]
[1724946808720,0.12549,146.75,146.66,7.1027508]
[1724946808919,0.12549,146.75,146.68,12.50222301]
[1724946810304,6.814,146.76,146.68,12.50222301]
[1724946810609,29.3655,146.77,146.68,12.50222301]
[1724946810808,22.552,146.77,146.7,12.50222301]
[1724946811011,22.552,146.77,146.71,1.36301976]
[1724946812419,22.552,146.77,146.69,45.0]
[1724946812728,22.552,146.77,146.7,32.50222301]
[1724946812925,22.552,146.77,146.72,12.50222301]
[1724946814811,22.552,146.77,146.73,1.3629541]
[1724946815011,16.0983,146.77,146.74,13.86497295]
[1724946815238,16.0983,146.77,146.75,1.36269052]
[1724946815407,16.0983,146.77,146.74,12.50222301]
[1724946815607,16.0983,146.77,146.72,12.50222301]
[1724946815911,16.0983,146.77,146.73,20.0]
[1724946816611,16.0983,146.77,146.71,12.50222301]
[1724946816824,16.0983,146.77,146.73,12.50222301]
[1724946817037,22.7139,146.81,146.74,20.0]
[1724946817206,22.7139,146.81,146.75,12.50222301]
[1724946817414,22.7139,146.81,146.76,1.3625551]
[1724946817921,16.6223,146.81,146.77,13.864726]
[1724946818936,16.6223,146.81,146.76,12.50222301]
[1724946819135,16.6223,146.81,146.77,65.0]
[1724946819308,16.6223,146.81,146.77,20.0]
[1724946820220,16.6223,146.81,146.68,23.71590506]
[1724946820422,16.6223,146.81,146.73,12.50222301]
[1724946820625,16.6223,146.81,146.74,20.0]
[1724946820820,16.6223,146.81,146.75,57.50222301]
[1724946821129,16.6223,146.81,146.76,20.0]
[1724946821336,16.6223,146.81,146.77,12.50222301]
[1724946821538,21.2068,146.85,146.78,66.36226672]
[1724946821712,21.2068,146.85,146.79,12.50222301]
[1724946822117,21.2068,146.85,146.78,65.0]
[1724946823344,21.2068,146.85,146.78,20.0]
[1724946823522,21.2068,146.85,146.75,31.23650508]
[1724946823523,21.2068,146.85,146.76,20.0]
[1724946823918,0.12549,146.84,146.76,20.0]
[1724946824233,6.93569,146.84,146.76,20.0]
[1724946824440,6.93569,146.84,146.74,20.0]
[1724946824642,52.44330508,146.85,146.74,20.0]
[1724946824824,21.2068,146.85,146.75,31.23650508]
[1724946825142,52.44330508,146.85,146.76,20.0]
[1724946825326,52.44330508,146.85,146.73,31.23650508]
[1724946825327,0.25098,146.84,146.73,31.23650508]
[1724946825524,15.7811,146.82,146.71,37.00188554]
[1724946825727,15.7811,146.82,146.72,36.08568776]
[1724946825928,15.7811,146.82,146.72,30.12549]
[1724946826345,15.7811,146.82,146.73,32.5990992]
[1724946826643,15.7811,146.82,146.73,31.23650508]
[1724946826847,15.7811,146.82,146.74,65.12549]
[1724946827643,15.7811,146.82,146.74,65.0]
[1724946827953,22.5921,146.82,146.74,20.0]
[1724946828169,13.30329,146.81,146.71,31.23650508]
[1724946828452,44.53979508,146.81,146.7,7.10794907]
[1724946828626,44.53979508,146.81,146.7,13.07054178]
[1724946828830,6.812,146.8,146.7,9.95443795]
[1724946829049,6.812,146.8,146.7,7.10794907]
[1724946829241,0.12549,146.79,146.7,7.10794907]
[1724946829741,16.1786,146.78,146.7,7.10794907]
[1724946831333,0.12549,146.77,146.71,20.0]
[1724946831553,0.12549,146.77,146.7,20.0]
[1724946831938,16.1786,146.78,146.71,1.36306365]
[1724946832247,16.1786,146.78,146.7,20.0]
[1724946833057,16.1786,146.78,146.71,1.36294676]
[1724946833237,16.1786,146.78,146.7,20.0]
[1724946834038,6.0965,146.77,146.69,7.11168109]
[1724946834239,15.8382,146.75,146.69,7.11168109]
[1724946834443,15.8382,146.75,146.64,5.97057256]
[1724946834648,15.8382,146.75,146.66,7.1096527]
[1724946835467,53.88900508,146.75,146.66,7.1096527]
[1724946835634,0.12549,146.74,146.63,31.23650508]
[1724946835970,0.12549,146.74,146.65,7.10965904]
[1724946836261,15.8382,146.75,146.65,38.34616412]
[1724946836838,15.8382,146.75,146.66,20.0]
[1724946837839,15.8382,146.75,146.67,1.36329241]
[1724946838041,15.8382,146.75,146.66,20.0]
[1724946838256,15.8382,146.75,146.67,45.0]
[1724946838439,15.8382,146.75,146.68,20.0]
[1724946839363,15.8382,146.75,146.67,76.23650508]
[1724946839664,15.8382,146.75,146.65,7.23514904]
[1724946839665,15.8382,146.75,146.65,38.47165412]
[1724946839861,15.8382,146.75,146.66,65.12549]
[1724946840032,6.94049,146.74,146.66,20.0]
[1724946840359,13.3625,146.73,146.66,20.0]
[1724946840735,13.3625,146.73,146.65,7.10965904]
[1724946841155,16.3351,146.71,146.65,7.10965904]
[1724946842346,0.12549,146.7,146.61,31.23650508]
[1724946842544,16.3351,146.71,146.62,20.0]
[1724946842747,16.3351,146.71,146.62,21.36369097]
[1724946843536,16.3351,146.71,146.63,76.23650508]
[1724946843745,16.3351,146.71,146.64,20.12549]
[1724946843952,16.3351,146.71,146.65,45.0]
[1724946844247,16.3351,146.71,146.66,1.36337799]
[1724946844556,16.3351,146.71,146.66,20.0]
[1724946844946,16.3351,146.71,146.64,20.0]
[1724946845357,16.3351,146.71,146.65,1.36353608]
[1724946845576,16.3351,146.71,146.64,20.0]
[1724946845758,0.12549,146.7,146.64,20.0]
[1724946846147,0.12549,146.7,146.62,20.0]
[1724946846348,6.94209,146.7,146.62,20.0]
[1724946847047,6.6453,146.69,146.62,20.0]
[1724946847842,15.14239,146.68,146.59,7.08906304]
[1724946848250,6.8181,146.67,146.59,7.08906304]
[1724946848562,6.8181,146.67,146.57,31.23650508]
[1724946848749,0.12549,146.66,146.57,38.32254434]
[1724946849258,6.94399,146.66,146.57,38.32254434]
[1724946849451,6.0278,146.65,146.57,38.32254434]
[1724946850263,6.0278,146.65,146.58,20.0]
[1724946850948,6.0278,146.65,146.59,45.0]
[1724946851142,6.0278,146.65,146.6,20.0]
[1724946851353,6.0278,146.65,146.58,20.0]
[1724946852553,15.7595,146.64,146.58,20.0]
[1724946853166,15.7595,146.64,146.59,45.0]
[1724946853353,15.7595,146.64,146.6,20.0]
[1724946855449,15.7595,146.64,146.59,20.0]
[1724946855948,15.7595,146.64,146.58,20.0]
[1724946859852,6.8198,146.63,146.57,7.08603926]
[1724946860048,0.12549,146.62,146.53,31.23650508]
[1724946860269,0.12549,146.62,146.54,37.09067634]
[1724946860449,0.12549,146.62,146.54,7.09067634]
[1724946861180,22.2289,146.61,146.53,31.23650508]
[1724946861472,6.94679,146.6,146.5,7.07118886]
[1724946861688,0.12549,146.6,146.5,7.07118886]
[1724946862182,0.12549,146.6,146.51,31.23650508]
[1724946862673,22.2289,146.61,146.51,31.23650508]
[1724946863466,0.12549,146.6,146.5,7.07118886]
[1724946863654,0.12549,146.6,146.51,65.0]
[1724946863854,22.0545,146.59,146.51,20.0]
[1724946864593,22.0545,146.59,146.5,20.0]
[1724946865566,22.0545,146.59,146.49,38.32962488]
[1724946865567,28.9811,146.58,146.49,7.0931198]
[1724946865793,22.5254,146.56,146.49,7.0931198]
[1724946865972,0.12549,146.55,146.45,31.23650508]
[1724946866175,0.12549,146.55,146.46,37.09327898]
[1724946866887,0.12549,146.55,146.46,7.09327898]
[1724946867284,6.2259,146.54,146.46,7.09327898]
[1724946867494,6.2259,146.54,146.45,31.23650508]
[1724946867692,6.2259,146.54,146.46,7.08806014]
[1724946868775,6.2259,146.54,146.47,20.0]
[1724946869091,6.2259,146.54,146.46,20.0]
[1724946869297,6.2259,146.54,146.47,0.12549]
[1724946869596,6.2259,146.54,146.46,20.0]
[1724946869969,6.2259,146.54,146.46,51.23650508]
[1724946870365,22.43699,146.53,146.45,7.08261852]
[1724946870567,22.43699,146.53,146.44,31.23650508]
[1724946871868,15.4869,146.53,146.45,20.0]
[1724946872197,15.4869,146.53,146.48,31.23650508]
[1724946872409,15.4869,146.53,146.45,20.0]
[1724946872410,15.4869,146.53,146.46,31.23650508]
[1724946872696,15.4869,146.53,146.47,20.0]
[1724946873198,15.4869,146.53,146.45,20.0]
[1724946873499,22.3117,146.53,146.45,20.0]
[1724946873679,45.12549,146.52,146.44,20.0]
[1724946873995,0.12549,146.52,146.45,1.36552389]
[1724946874198,15.4869,146.53,146.46,31.23650508]
[1724946874794,15.4869,146.53,146.48,31.23650508]
[1724946875184,15.4869,146.53,146.49,21.36503439]
[1724946875381,15.4869,146.53,146.48,31.23650508]
[1724946875569,15.4869,146.53,146.49,20.0]
[1724946876604,15.4869,146.53,146.49,21.36520209]
[1724946876978,15.4869,146.53,146.49,20.0]
[1724946879299,15.4869,146.53,146.48,31.23650508]
[1724946879470,15.4869,146.53,146.46,31.23650508]
[1724946880805,15.4869,146.53,146.47,20.0]
[1724946882989,13.2134,146.52,146.42,7.08886795]
[1724946883192,0.25098,146.51,146.43,30.0]
[1724946883379,6.3884,146.52,146.44,31.23650508]
[1724946884489,6.3884,146.52,146.45,20.0]
[1724946885209,13.2136,146.52,146.45,20.0]
[1724946886091,0.12549,146.51,146.45,20.0]
[1724946886392,0.12549,146.51,146.42,7.09144785]
[1724946886393,15.0307,146.5,146.42,7.09144785]
[1724946886601,15.0307,146.5,146.43,20.0]
[1724946886799,15.0307,146.5,146.43,31.23650508]
[1724946887100,15.0307,146.5,146.44,20.0]
[1724946887794,15.0307,146.5,146.43,20.0]
[1724946887981,15.0307,146.5,146.42,20.0]
[1724946888191,15.0307,146.5,146.43,31.23650508]
[1724946888399,15.0307,146.5,146.44,19.5]
[1724946889188,15.0307,146.5,146.45,76.23650508]
[1724946889701,15.0307,146.5,146.47,31.23650508]
[1724946890384,16.574,146.54,146.49,31.23650508]
[1724946890588,22.6255,146.57,146.51,31.23650508]
[1724946890778,22.6255,146.57,146.52,65.0]
[1724946891192,22.6255,146.57,146.53,31.23650508]
[1724946891396,16.574,146.57,146.54,65.0]
[1724946891578,16.574,146.57,146.54,45.0]
[1724946892199,6.4693,146.6,146.54,45.0]
[1724946892503,6.4693,146.6,146.57,31.23650508]
[1724946892701,16.3418,146.61,146.58,21.36418175]
[1724946892910,6.024,146.64,146.58,20.0]
[1724946894404,6.024,146.64,146.59,31.23650508]
[1724946894598,16.2717,146.65,146.59,31.23650508]
[1724946894786,16.2717,146.65,146.61,31.23650508]
[1724946894987,16.2717,146.65,146.6,45.0]
[1724946896205,6.5817,146.68,146.61,51.36199508]
[1724946896398,6.5817,146.68,146.62,45.0]
[1724946896905,6.5817,146.68,146.63,20.0]
[1724946897299,6.5817,146.68,146.63,51.23650508]
[1724946897500,6.5817,146.68,146.64,1.36360806]
[1724946897906,6.5817,146.68,146.63,51.23650508]
[1724946898506,6.5817,146.68,146.64,45.0]
[1724946898801,6.5817,146.68,146.58,31.23650508]
[1724946899400,6.8186,146.66,146.58,31.23650508]
[1724946899800,6.8183,146.67,146.58,31.23650508]
[1724946900195,6.5817,146.68,146.58,30.73650508]
[1724946900405,6.5817,146.68,146.59,31.23650508]
[1724946900808,6.5817,146.68,146.6,45.12549]
[1724946900996,6.5817,146.68,146.6,65.12549]
[1724946903125,6.5817,146.68,146.61,31.23650508]
[1724946903292,6.5817,146.68,146.63,31.23650508]
[1724946903498,6.5817,146.68,146.64,20.0]
[1724946904706,16.1701,146.69,146.64,20.0]
[1724946904909,16.1701,146.69,146.65,76.36199508]
[1724946905218,16.1701,146.69,146.64,20.0]
[1724946905616,16.1701,146.69,146.59,31.23650508]
[1724946905800,22.9871,146.69,146.59,31.23650508]
[1724946905994,6.8176,146.68,146.59,31.23650508]
[1724946906194,16.1701,146.69,146.59,31.23650508]
[1724946906195,22.9873,146.69,146.59,31.23650508]
[1724946906498,16.1701,146.69,146.59,31.23650508]
[1724946907017,16.1701,146.69,146.63,31.23650508]
[1724946907317,16.1701,146.69,146.64,65.0]
[1724946907500,16.1701,146.69,146.64,20.0]
[1724946908333,16.1701,146.69,146.65,45.12549]
[1724946908804,6.4121,146.72,146.66,1.36337994]
[1724946909007,6.4121,146.72,146.66,21.36337994]
[1724946909207,6.4121,146.72,146.67,76.23650508]
[1724946909424,6.4121,146.72,146.67,45.0]
[1724946909630,6.4121,146.72,146.6,61.23650508]
[1724946909836,6.8161,146.71,146.6,31.23650508]
[1724946910833,6.8161,146.71,146.61,0.25098]
[1724946911134,6.8161,146.71,146.61,65.25098]
[1724946911724,15.1127,146.7,146.56,7.08557169]
[1724946911928,15.1127,146.7,146.57,31.23650508]
[1724946911929,6.3852,146.69,146.57,31.23650508]
[1724946912127,6.818,146.67,146.57,31.23650508]
[1724946913433,6.3852,146.63,146.56,7.08557169]
[1724946913634,6.3852,146.63,146.52,8.52757103]
[1724946913635,6.3852,146.63,146.54,31.23650508]
[1724946913935,6.3852,146.63,146.56,31.23650508]
[1724946914931,6.3852,146.63,146.55,7.0890509]
[1724946915234,15.9219,146.62,146.55,7.0890509]
[1724946915539,15.9219,146.62,146.5,31.23650508]
[1724946915727,0.12549,146.61,146.51,7.08200093]
[1724946916236,6.94639,146.61,146.51,7.08200093]
[1724946916630,0.12549,146.61,146.52,20.0]
[1724946916828,15.9219,146.62,146.52,31.23650508]
[1724946917447,15.9219,146.62,146.54,31.23650508]
[1724946917628,6.8214,146.6,146.51,7.08200093]
[1724946917943,6.94729,146.59,146.5,31.23650508]
[1724946918150,6.8227,146.57,146.49,7.08736225]
[1724946918336,15.9219,146.58,146.48,31.23650508]
[1724946918644,15.9219,146.58,146.47,7.08963353]
[1724946918645,6.2719,146.57,146.47,7.08963353]
[1724946918850,0.12549,146.56,146.47,7.08963353]
[1724946919632,6.8236,146.55,146.47,7.08963353]
[1724946919847,15.9025,146.53,146.46,31.23650508]
[1724946920052,15.9025,146.53,146.45,7.09659489]
[1724946920831,15.9025,146.53,146.43,39.22181516]
[1724946921032,15.9025,146.53,146.44,7.0972123]
[1724946921233,6.8255,146.51,146.44,7.0972123]
[1724946921546,6.8255,146.51,146.41,39.22181516]
[1724946921734,13.22239,146.52,146.42,7.09794504]
[1724946921946,73.8442,146.51,146.42,7.09794504]
[1724946922252,7.07698,146.5,146.39,39.22181516]
[1724946922459,0.12549,146.5,146.39,46.32048221]
[1724946922627,22.0187,146.51,146.39,7.09866705]
[1724946922833,6.95139,146.5,146.39,46.32048221]
[1724946923229,22.0187,146.51,146.39,46.32048221]
[1724946923442,22.0187,146.51,146.41,39.22181516]
[1724946923755,22.0187,146.51,146.43,39.22181516]
[1724946923961,22.0187,146.51,146.45,39.22181516]
[1724946924257,22.0187,146.51,146.46,65.12549]
[1724946924754,22.0187,146.51,146.47,0.12549]
[1724946925343,22.0187,146.51,146.46,65.12549]
[1724946925853,22.7485,146.54,146.47,39.34730516]
[1724946926067,22.7485,146.54,146.48,65.0]
[1724946926349,22.7485,146.54,146.49,20.0]
[1724946926558,22.7485,146.54,146.46,65.12549]
[1724946926741,22.7485,146.54,146.47,0.12549]
[1724946926943,22.7485,146.54,146.46,65.12549]
[1724946927350,22.7485,146.54,146.47,0.12549]
[1724946927554,22.7485,146.54,146.47,39.34730516]
[1724946927765,22.7485,146.54,146.48,65.12549]
[1724946928259,22.7485,146.54,146.49,39.34730516]
[1724946928460,22.7485,146.54,146.5,65.12549]
[1724946928660,16.0862,146.54,146.51,39.22181516]
[1724946928964,22.5594,146.58,146.52,20.0]
[1724946929650,22.5594,146.58,146.53,45.0]
[1724946929851,22.5594,146.58,146.54,20.0]
[1724946931460,22.5594,146.58,146.52,20.12549]
[1724946932173,22.5594,146.58,146.52,20.0]
[1724946932875,22.5594,146.58,146.49,39.22181516]
[1724946934179,22.5594,146.58,146.5,20.0]
[1724946936784,22.5594,146.58,146.53,39.22181516]
[1724946936960,22.5594,146.58,146.54,65.0]
[1724946937357,22.5594,146.58,146.54,20.0]
[1724946937668,22.5594,146.58,146.52,20.0]
[1724946938770,22.5594,146.58,146.5,20.0]
[1724946939162,29.3819,146.58,146.5,20.0]
[1724946939361,22.5594,146.58,146.5,20.0]
[1724946941482,22.5594,146.58,146.48,20.0]
[1724946941671,6.94819,146.57,146.48,20.0]
[1724946941879,0.12549,146.57,146.48,20.0]
[1724946942077,29.3817,146.58,146.48,20.0]
[1724946942696,29.3817,146.58,146.49,45.0]
[1724946943071,29.3817,146.58,146.48,45.12549]
[1724946943270,29.3817,146.58,146.49,0.12549]
[1724946944289,6.8227,146.57,146.49,20.12549]
[1724946945275,6.8235,146.56,146.49,20.0]
[1724946946379,6.8228,146.57,146.49,20.0]
[1724946946982,22.5594,146.58,146.51,39.22181516]
[1724946947186,22.5594,146.58,146.52,65.0]
[1724946947902,22.5594,146.58,146.53,39.34730516]
[1724946948194,22.5594,146.58,146.54,65.0]
[1724946948495,21.8423,146.66,146.55,39.22181516]
[1724946948696,21.8423,146.66,146.56,65.25098]
[1724946948870,28.6611,146.66,146.56,65.25098]
[1724946949066,6.8195,146.64,146.56,20.0]
[1724946949974,21.8423,146.63,146.53,39.22181516]
[1724946950168,45.25098,146.62,146.51,39.22181516]
[1724946950476,6.94589,146.62,146.52,75.25098]
[1724946950682,6.94589,146.62,146.53,39.22181516]
[1724946950987,6.94589,146.62,146.54,45.0]
[1724946951168,6.8216,146.6,146.53,39.22181516]
[1724946951371,0.12549,146.59,146.54,20.0]
[1724946951595,22.9555,146.61,146.52,20.0]
[1724946951971,6.8215,146.6,146.52,20.0]
[1724946952192,0.12549,146.59,146.52,20.0]
[1724946954097,6.2513,146.58,146.52,20.0]
[1724946954398,6.2513,146.58,146.51,39.22181516]
[1724946955001,6.2513,146.58,146.49,39.22181516]
[1724946955299,6.2513,146.58,146.5,45.12549]
[1724946955496,13.0736,146.58,146.5,20.0]
[1724946956002,23.4668,146.57,146.47,46.30195739]
[1724946956306,23.4668,146.57,146.48,45.0]
[1724946957181,23.4668,146.57,146.49,20.0]
[1724946957378,16.6442,146.57,146.49,20.0]
[1724946957896,16.6442,146.57,146.5,45.12549]
[1724946958089,16.6442,146.57,146.51,51.34922529]
[1724946958788,16.6442,146.57,146.53,31.34922529]
[1724946958988,16.6442,146.57,146.54,20.0]
[1724946960900,16.6442,146.57,146.55,31.34922529]
[1724946961706,6.2513,146.58,146.55,31.34922529]
[1724946961894,15.6085,146.61,146.55,31.34922529]
[1724946962102,15.6085,146.61,146.57,31.34922529]
[1724946962315,15.6085,146.61,146.58,1.3641808]
[1724946963096,15.6085,146.61,146.56,0.12549]
[1724946963288,15.6085,146.61,146.56,65.12549]
[1724946964007,15.6085,146.61,146.56,20.0]
[1724946964419,15.6085,146.61,146.54,20.0]
[1724946966611,15.6085,146.61,146.55,76.47471529]
[1724946966795,15.6085,146.61,146.56,20.0]
[1724946970602,15.6085,146.61,146.57,76.34922529]
[1724946970917,15.6085,146.61,146.58,21.36417231]
[1724946971326,15.6085,146.61,146.58,20.0]
[1724946972122,15.6085,146.61,146.59,1.36412754]
[1724946972301,15.6085,146.61,146.58,20.0]
[1724946973424,22.5903,146.67,146.58,20.0]
[1724946973622,29.4083,146.67,146.59,76.47471529]
[1724946976020,22.5903,146.67,146.59,76.47471529]
[1724946976204,22.5903,146.67,146.6,20.0]
[1724946977418,0.12549,146.66,146.58,20.0]
[1724946977729,6.94409,146.66,146.58,20.0]
[1724946979419,0.12549,146.66,146.58,20.0]
[1724946979626,45.25098,146.66,146.58,20.0]
[1724946979808,22.1108,146.65,146.53,31.34922529]
[1724946980017,6.8213,146.6,146.5,5.80189472]
[1724946980224,22.1108,146.62,146.51,61.34922529]
[1724946980411,22.1108,146.62,146.52,2.86499065]
[1724946980838,22.1108,146.62,146.53,31.34922529]
[1724946981213,28.9311,146.62,146.53,31.34922529]
[1724946981406,28.9311,146.62,146.54,20.0]
[1724946982724,22.1108,146.62,146.54,20.0]
[1724946982929,28.9312,146.62,146.54,20.0]
[1724946985337,6.8209,146.61,146.54,20.0]
[1724946986018,6.8216,146.6,146.54,20.0]
[1724946986221,6.94729,146.59,146.51,30.0]
[1724946986431,6.94729,146.59,146.52,20.0]
[1724946986815,6.94729,146.59,146.5,22.86351725]
[1724946987009,6.94729,146.59,146.5,2.86351725]
[1724946987233,6.8222,146.58,146.5,2.86351725]
[1724946987531,16.2861,146.56,146.5,2.86351725]
[1724946987714,16.2861,146.56,146.51,31.34922529]
[1724946988944,16.2861,146.56,146.52,20.0]
[1724946990333,16.2861,146.56,146.53,31.34922529]
[1724946990552,15.9055,146.59,146.55,31.34922529]
[1724946991115,15.9055,146.59,146.53,31.34922529]
[1724946991346,15.9055,146.59,146.54,20.0]
[1724946991639,15.9055,146.59,146.51,31.34922529]
[1724946991821,15.9055,146.59,146.52,20.0]
[1724946992025,6.4438,146.58,146.49,7.10160128]
[1724946992229,6.4438,146.58,146.5,20.0]
[1724946992432,6.4438,146.58,146.49,28.66370195]
[1724946992726,6.4438,146.58,146.5,34.21226545]
[1724946992948,6.4438,146.58,146.51,20.0]
[1724946993140,15.7098,146.57,146.47,7.10193763]
[1724946993349,15.83529,146.57,146.47,38.45116292]
[1724946993642,22.65809,146.57,146.48,2.86314071]
[1724946993840,15.7098,146.57,146.49,31.34922529]
[1724946994051,15.7098,146.57,146.5,2.86314071]
[1724946994351,15.7098,146.57,146.47,38.45190462]
[1724946994559,0.12549,146.56,146.48,65.0]
[1724946994726,15.7098,146.57,146.49,31.34922529]
[1724946994927,15.7098,146.57,146.5,20.0]
[1724946996337,0.12549,146.56,146.49,20.0]
[1724946996645,0.12549,146.56,146.48,22.86395753]
[1724946997039,6.94859,146.56,146.48,22.86395753]
[1724946997456,6.8236,146.55,146.48,22.86395753]
[1724946997630,6.8246,146.53,146.48,2.86395753]
[1724946997830,28.3883,146.54,146.46,8.66721059]
[1724946998145,28.3883,146.54,146.46,2.86395753]
[1724946998350,28.3883,146.54,146.45,31.34922529]
[1724946998524,28.3883,146.54,146.46,2.86457634]
[1724946998729,0.12549,146.53,146.46,2.86457634]
[1724946999250,6.95009,146.53,146.46,2.86457634]
[1724946999436,6.95009,146.53,146.43,38.45131756]
[1724946999647,6.95009,146.53,146.44,2.86634432]
[1724947000134,21.5641,146.54,146.47,31.34922529]
[1724947000453,21.5641,146.54,146.48,20.0]
[1724947000754,21.5641,146.54,146.48,21.36510579]
[1724947000953,21.5641,146.54,146.48,20.0]
[1724947001955,21.5641,146.54,146.49,1.36510991]
[1724947002351,21.5641,146.54,146.49,31.34922529]
[1724947003433,21.5641,146.54,146.48,20.0]
[1724947004237,21.5641,146.54,146.46,20.0]
[1724947004555,21.5641,146.54,146.47,45.0]
[1724947004728,21.5641,146.54,146.48,20.0]
[1724947005060,15.039,146.54,146.51,31.34922529]